[Event "*** Titled Tuesday Blitz"]
[Site "Chess.com"]
[Date "2020.02.04"]
[Round "1"]
[White "Barcelona_Guy"]
[Black "2165149677570"]
[Result "1-0"]
[WhiteElo "2642"]
[BlackElo "2305"]
[TimeControl "180+2"]
[EndTime "13:05:45 PST"]
[Termination "Barcelona_Guy won by resignation"]

1. e4 {[%clk 0:03:01.9]} 1... c5 {[%clk 0:02:48.8]} 2. Nf3 {[%clk 0:03:01.9]}
2... d6 {[%clk 0:02:49.4]} 3. Bb5+ {[%clk 0:03:01]} 3... Nc6 {[%clk 0:02:49.6]}
4. O-O {[%clk 0:02:59.4]} 4... Bd7 {[%clk 0:02:49.9]} 5. Re1 {[%clk 0:03:00.2]}
5... Nf6 {[%clk 0:02:43.6]} 6. c3 {[%clk 0:03:00.8]} 6... a6 {[%clk 0:02:40.6]}
7. Bf1 {[%clk 0:03:02.2]} 7... Bg4 {[%clk 0:02:36.1]} 8. h3 {[%clk 0:03:03.6]}
8... Bxf3 {[%clk 0:02:33.5]} 9. Qxf3 {[%clk 0:03:05.5]} 9... e6 {[%clk
0:02:35.1]} 10. d3 {[%clk 0:03:04]} 10... Be7 {[%clk 0:02:34.7]} 11. Bf4 {[%clk
0:02:58.2]} 11... O-O {[%clk 0:02:29.7]} 12. Nd2 {[%clk 0:02:58.9]} 12... d5
{[%clk 0:02:31]} 13. Qe2 {[%clk 0:02:40.5]} 13... e5 {[%clk 0:02:24.3]} 14. Bh2
{[%clk 0:02:33.9]} 14... Re8 {[%clk 0:02:14.7]} 15. Rad1 {[%clk 0:02:29.2]}
15... Qb6 {[%clk 0:02:05.7]} 16. exd5 {[%clk 0:02:26.5]} 16... Nxd5 {[%clk
0:02:07.1]} 17. Nc4 {[%clk 0:02:27.6]} 17... Qc7 {[%clk 0:02:06.3]} 18. Bxe5
{[%clk 0:02:14]} 18... Nxe5 {[%clk 0:02:05.8]} 19. Qxe5 {[%clk 0:02:14.8]} 19...
Qc6 {[%clk 0:02:06.1]} 20. g3 {[%clk 0:02:04]} 20... b5 {[%clk 0:02:04.8]} 21.
Bg2 {[%clk 0:02:03.6]} 21... Rad8 {[%clk 0:02:03.3]} 22. Na5 {[%clk 0:01:59.5]}
22... Qd7 {[%clk 0:01:56.6]} 23. d4 {[%clk 0:01:17.5]} 23... cxd4 {[%clk
0:01:22.9]} 24. Qxd4 {[%clk 0:01:18.1]} 24... Nf6 {[%clk 0:00:58.2]} 25. Qxd7
{[%clk 0:01:18.1]} 25... Rxd7 {[%clk 0:00:54.4]} 26. Rxd7 {[%clk 0:01:18.5]}
26... Nxd7 {[%clk 0:00:56.3]} 27. Bc6 {[%clk 0:01:19.8]} 1-0

[Event "*** Titled Tuesday Blitz"]
[Site "Chess.com"]
[Date "2020.02.04"]
[Round "1"]
[White "12teen"]
[Black "ChessBitl"]
[Result "1-0"]
[WhiteElo "2710"]
[BlackElo "2377"]
[TimeControl "180+2"]
[EndTime "13:05:49 PST"]
[Termination "12teen won on time"]

1. e4 {[%clk 0:03:00.3]} 1... c5 {[%clk 0:03:00.4]} 2. Nc3 {[%clk 0:02:58]} 2...
Nc6 {[%clk 0:03:01.3]} 3. d3 {[%clk 0:02:58.4]} 3... g6 {[%clk 0:03:02]} 4. f4
{[%clk 0:02:59.4]} 4... Bg7 {[%clk 0:03:03.3]} 5. g3 {[%clk 0:03:00.3]} 5... e6
{[%clk 0:03:04.6]} 6. Bg2 {[%clk 0:03:01.4]} 6... Nge7 {[%clk 0:03:06.2]} 7. Nf3
{[%clk 0:03:02.6]} 7... d5 {[%clk 0:03:07.4]} 8. Bd2 {[%clk 0:03:01.4]} 8... O-O
{[%clk 0:03:07.6]} 9. Qe2 {[%clk 0:03:00.5]} 9... b6 {[%clk 0:03:06.6]} 10. h4
{[%clk 0:02:53.9]} 10... h5 {[%clk 0:03:04.8]} 11. e5 {[%clk 0:02:45.8]} 11...
Nf5 {[%clk 0:03:02.1]} 12. Qf2 {[%clk 0:02:46.7]} 12... Bb7 {[%clk 0:02:57.7]}
13. Bh3 {[%clk 0:02:42]} 13... Ncd4 {[%clk 0:02:54.9]} 14. O-O-O {[%clk
0:02:42.8]} 14... Qd7 {[%clk 0:02:49.1]} 15. g4 {[%clk 0:02:41.7]} 15... hxg4
{[%clk 0:02:42]} 16. Bxg4 {[%clk 0:02:43.6]} 16... b5 {[%clk 0:02:24.5]} 17. h5
{[%clk 0:02:38.3]} 17... b4 {[%clk 0:02:23]} 18. Ne2 {[%clk 0:02:39.2]} 18...
Nxe2+ {[%clk 0:02:15]} 19. Qxe2 {[%clk 0:02:41.1]} 19... Ng3 {[%clk 0:02:16.4]}
20. Qh2 {[%clk 0:02:42.8]} 20... Nxh1 {[%clk 0:02:17.9]} 21. Rxh1 {[%clk
0:02:44.7]} 21... gxh5 {[%clk 0:01:44.2]} 22. Qxh5 {[%clk 0:02:31.4]} 22... Rfc8
{[%clk 0:01:40.1]} 23. f5 {[%clk 0:02:20.8]} 23... exf5 {[%clk 0:01:13.9]} 24.
Bxf5 {[%clk 0:02:22.7]} 24... Qe7 {[%clk 0:01:09.6]} 25. Bg5 {[%clk 0:02:19.7]}
25... Qe8 {[%clk 0:00:55.4]} 26. Bf6 {[%clk 0:02:16.7]} 26... Kf8 {[%clk
0:00:12.4]} 27. Qh8+ {[%clk 0:02:11.9]} 1-0

[Event "*** Titled Tuesday Blitz"]
[Site "Chess.com"]
[Date "2020.02.04"]
[Round "1"]
[White "cmpassgall"]
[Black "CM_Perligero"]
[Result "1-0"]
[WhiteElo "2535"]
[BlackElo "2079"]
[TimeControl "180+2"]
[EndTime "13:05:56 PST"]
[Termination "cmpassgall won by resignation"]

1. Nf3 {[%clk 0:03:01.9]} 1... Nf6 {[%clk 0:02:56.6]} 2. c4 {[%clk 0:03:02.5]}
2... g6 {[%clk 0:02:54.7]} 3. b3 {[%clk 0:03:03.2]} 3... Bg7 {[%clk 0:02:53.9]}
4. Bb2 {[%clk 0:03:04.7]} 4... O-O {[%clk 0:02:54]} 5. g3 {[%clk 0:03:04.9]}
5... d6 {[%clk 0:02:50.4]} 6. d4 {[%clk 0:03:05.7]} 6... c6 {[%clk 0:02:49.6]}
7. Bg2 {[%clk 0:03:03.8]} 7... Bf5 {[%clk 0:02:13]} 8. O-O {[%clk 0:03:02.1]}
8... Qc8 {[%clk 0:02:12.8]} 9. Re1 {[%clk 0:02:59]} 9... Bh3 {[%clk 0:02:09.3]}
10. e4 {[%clk 0:02:59.3]} 10... Bxg2 {[%clk 0:02:09.4]} 11. Kxg2 {[%clk
0:02:58.5]} 11... Nbd7 {[%clk 0:02:01.4]} 12. e5 {[%clk 0:02:53.8]} 12... dxe5
{[%clk 0:01:50.7]} 13. dxe5 {[%clk 0:02:55.7]} 13... Nh5 {[%clk 0:01:48.6]} 14.
Qe2 {[%clk 0:02:54.1]} 14... Nc5 {[%clk 0:01:45]} 15. Qe3 {[%clk 0:02:47.3]}
15... Ne6 {[%clk 0:01:38.4]} 16. Nc3 {[%clk 0:02:46]} 16... Rd8 {[%clk
0:01:07.6]} 17. Rad1 {[%clk 0:02:40.7]} 17... Qc7 {[%clk 0:01:08.2]} 18. Ne4
{[%clk 0:02:35]} 18... b6 {[%clk 0:01:02.8]} 19. Neg5 {[%clk 0:02:27.2]} 19...
Nxg5 {[%clk 0:00:55.4]} 20. Nxg5 {[%clk 0:02:29.1]} 20... Bh6 {[%clk 0:00:56.3]}
21. h4 {[%clk 0:02:27.5]} 21... c5 {[%clk 0:00:52.3]} 22. e6 {[%clk 0:02:15.5]}
22... f6 {[%clk 0:00:51.2]} 23. Qf3 {[%clk 0:02:16.1]} 23... Bxg5 {[%clk
0:00:41.8]} 24. hxg5 {[%clk 0:02:15.8]} 24... f5 {[%clk 0:00:42.1]} 25. Qc3
{[%clk 0:02:09.5]} 25... Qc6+ {[%clk 0:00:39.6]} 26. Kh2 {[%clk 0:02:06.9]} 1-0

[Event "*** Titled Tuesday Blitz"]
[Site "Chess.com"]
[Date "2020.02.04"]
[Round "1"]
[White "Chesstrainer1"]
[Black "ElHelvetico"]
[Result "0-1"]
[WhiteElo "2369"]
[BlackElo "2699"]
[TimeControl "180+2"]
[EndTime "13:06:02 PST"]
[Termination "ElHelvetico won by resignation"]

1. Nf3 {[%clk 0:03:00.2]} 1... f5 {[%clk 0:02:59.9]} 2. d3 {[%clk 0:03:00.6]}
2... Nc6 {[%clk 0:02:59.8]} 3. e4 {[%clk 0:03:01.2]} 3... e5 {[%clk 0:03:00.8]}
4. Nc3 {[%clk 0:02:51.3]} 4... Nf6 {[%clk 0:03:01.4]} 5. exf5 {[%clk 0:02:47]}
5... d5 {[%clk 0:03:01.7]} 6. Nh4 {[%clk 0:02:47.7]} 6... Bc5 {[%clk 0:02:51.1]}
7. Bg5 {[%clk 0:02:42.4]} 7... O-O {[%clk 0:02:51.1]} 8. g3 {[%clk 0:02:19.8]}
8... Nd4 {[%clk 0:02:36]} 9. Bh3 {[%clk 0:02:00.1]} 9... c6 {[%clk 0:02:31.8]}
10. O-O {[%clk 0:01:57.6]} 10... h6 {[%clk 0:02:32.5]} 11. Bxf6 {[%clk
0:01:51.6]} 11... Qxf6 {[%clk 0:02:34.4]} 12. Na4 {[%clk 0:01:13]} 12... Bd6
{[%clk 0:02:25.5]} 13. f4 {[%clk 0:01:06.7]} 13... exf4 {[%clk 0:02:19.4]} 14.
Ng6 {[%clk 0:01:07.4]} 14... Bxf5 {[%clk 0:01:35.8]} 15. Bxf5 {[%clk 0:01:02.7]}
15... Nxf5 {[%clk 0:01:34.3]} 16. Nxf8 {[%clk 0:00:59.3]} 16... Rxf8 {[%clk
0:01:30.9]} 17. Nc3 {[%clk 0:00:20.9]} 17... Ne3 {[%clk 0:01:31.2]} 18. Qf3
{[%clk 0:00:13.9]} 18... Nxf1 {[%clk 0:01:20.7]} 19. Rxf1 {[%clk 0:00:14.3]}
19... fxg3 {[%clk 0:01:18.2]} 0-1

[Event "*** Titled Tuesday Blitz"]
[Site "Chess.com"]
[Date "2020.02.04"]
[Round "1"]
[White "platy3"]
[Black "Sanyura"]
[Result "1-0"]
[WhiteElo "2886"]
[BlackElo "2469"]
[TimeControl "180+2"]
[EndTime "13:06:13 PST"]
[Termination "platy3 won by resignation"]

1. e4 {[%clk 0:02:58.5]} 1... c5 {[%clk 0:02:55.8]} 2. Nf3 {[%clk 0:02:59.1]}
2... e6 {[%clk 0:02:57.2]} 3. d4 {[%clk 0:03:00.2]} 3... cxd4 {[%clk 0:02:59.1]}
4. Nxd4 {[%clk 0:03:01.9]} 4... Nc6 {[%clk 0:03:00.6]} 5. Nc3 {[%clk 0:03:02.7]}
5... Nf6 {[%clk 0:02:59.9]} 6. Nxc6 {[%clk 0:03:00.2]} 6... bxc6 {[%clk
0:03:00.4]} 7. e5 {[%clk 0:03:00.1]} 7... Nd5 {[%clk 0:03:01.4]} 8. Ne4 {[%clk
0:03:01.6]} 8... Qc7 {[%clk 0:03:02.6]} 9. f4 {[%clk 0:03:02.6]} 9... Qb6 {[%clk
0:03:04]} 10. c4 {[%clk 0:03:03.9]} 10... Bb4+ {[%clk 0:03:03.6]} 11. Ke2 {[%clk
0:03:05]} 11... f5 {[%clk 0:03:03.1]} 12. Nf2 {[%clk 0:03:03.8]} 12... Ne7
{[%clk 0:03:01.3]} 13. Nd3 {[%clk 0:03:04.4]} 13... Ba6 {[%clk 0:02:44.9]} 14.
Be3 {[%clk 0:02:39.4]} 14... c5 {[%clk 0:02:20.9]} 15. a3 {[%clk 0:02:34.7]}
15... Bxc4 {[%clk 0:02:21.7]} 16. axb4 {[%clk 0:02:35.3]} 16... Nd5 {[%clk
0:02:23]} 17. Bxc5 {[%clk 0:02:31.7]} 17... Qb5 {[%clk 0:02:23.9]} 18. Kf2
{[%clk 0:02:31.6]} 18... a5 {[%clk 0:02:22.4]} 19. b3 {[%clk 0:02:29.8]} 19...
Bxd3 {[%clk 0:02:21.2]} 20. Bxd3 {[%clk 0:02:30.1]} 20... Qb7 {[%clk 0:02:21.7]}
21. Qf3 {[%clk 0:02:28.2]} 21... axb4 {[%clk 0:02:16.2]} 22. Bc4 {[%clk
0:02:29]} 22... Kf7 {[%clk 0:01:56]} 23. Rhd1 {[%clk 0:02:12.4]} 23... Qc7
{[%clk 0:01:43.3]} 24. Bd4 {[%clk 0:02:01.5]} 24... Rxa1 {[%clk 0:01:22.8]} 25.
Rxa1 {[%clk 0:02:01]} 25... Nb6 {[%clk 0:01:24.1]} 26. Bxb6 {[%clk 0:01:57.7]}
26... Qxb6+ {[%clk 0:01:26]} 27. Qe3 {[%clk 0:01:59.3]} 27... Qc6 {[%clk
0:01:27.3]} 28. Qd4 {[%clk 0:01:58.2]} 28... Ke7 {[%clk 0:01:25.6]} 29. Ra6
{[%clk 0:01:57.4]} 29... Qb7 {[%clk 0:01:24.8]} 30. Qc5+ {[%clk 0:01:54]} 30...
Kf7 {[%clk 0:01:24.4]} 31. Bxe6+ {[%clk 0:01:54.7]} 31... Kg6 {[%clk 0:01:05.3]}
32. Bc4+ {[%clk 0:01:53.4]} 32... Kh5 {[%clk 0:01:00.5]} 33. Be2+ {[%clk
0:01:53.3]} 33... Kh4 {[%clk 0:01:01.4]} 34. Qe3 {[%clk 0:01:48.9]} 1-0

[Event "*** Titled Tuesday Blitz"]
[Site "Chess.com"]
[Date "2020.02.04"]
[Round "1"]
[White "GMKrikor"]
[Black "catalin009"]
[Result "1-0"]
[WhiteElo "2815"]
[BlackElo "2440"]
[TimeControl "180+2"]
[EndTime "13:06:29 PST"]
[Termination "GMKrikor won by resignation"]

1. Nf3 {[%clk 0:02:48.4]} 1... Nf6 {[%clk 0:02:59.4]} 2. c4 {[%clk 0:02:49]}
2... e6 {[%clk 0:02:57.7]} 3. e3 {[%clk 0:02:46.7]} 3... d5 {[%clk 0:02:54.3]}
4. Nc3 {[%clk 0:02:48.6]} 4... b6 {[%clk 0:02:52.4]} 5. b3 {[%clk 0:02:46.7]}
5... Bb7 {[%clk 0:02:50]} 6. Bb2 {[%clk 0:02:46.9]} 6... Be7 {[%clk 0:02:50.9]}
7. cxd5 {[%clk 0:02:47.4]} 7... exd5 {[%clk 0:02:50.4]} 8. d4 {[%clk 0:02:48.6]}
8... O-O {[%clk 0:02:51.3]} 9. Rc1 {[%clk 0:02:50.1]} 9... c5 {[%clk 0:02:52.8]}
10. Bd3 {[%clk 0:02:38.3]} 10... Nbd7 {[%clk 0:02:42.9]} 11. O-O {[%clk
0:02:38]} 11... Re8 {[%clk 0:02:42.5]} 12. Bf5 {[%clk 0:02:37.3]} 12... Bf8
{[%clk 0:02:39.9]} 13. Qc2 {[%clk 0:02:28.1]} 13... a6 {[%clk 0:02:16.1]} 14.
Rfd1 {[%clk 0:02:28.6]} 14... Qe7 {[%clk 0:02:08.6]} 15. dxc5 {[%clk 0:02:28.4]}
15... bxc5 {[%clk 0:01:42.1]} 16. Bxd7 {[%clk 0:02:24.4]} 16... Qxd7 {[%clk
0:01:38.1]} 17. Na4 {[%clk 0:02:25.6]} 17... Ne4 {[%clk 0:01:30.5]} 18. Nb6
{[%clk 0:02:24.7]} 18... Qg4 {[%clk 0:01:22.5]} 19. h3 {[%clk 0:02:20.6]} 19...
Qh5 {[%clk 0:01:14.6]} 20. Nxa8 {[%clk 0:02:20.9]} 20... Bxa8 {[%clk 0:01:16.5]}
21. Qe2 {[%clk 0:02:10.6]} 21... Bd6 {[%clk 0:00:58.2]} 22. Re1 {[%clk
0:02:06.1]} 22... Bb8 {[%clk 0:00:49.5]} 23. Nd2 {[%clk 0:01:57.5]} 23... Qg6
{[%clk 0:00:33.1]} 24. Nxe4 {[%clk 0:01:57.9]} 24... Rxe4 {[%clk 0:00:24.8]} 25.
Rxc5 {[%clk 0:01:52.7]} 25... Bb7 {[%clk 0:00:10.8]} 26. Rec1 {[%clk 0:01:53.8]}
26... h5 {[%clk 0:00:10.7]} 27. Rc8+ {[%clk 0:01:49]} 27... Bxc8 {[%clk
0:00:07.1]} 28. Rxc8+ {[%clk 0:01:50.9]} 28... Kh7 {[%clk 0:00:09]} 29. Rxb8
{[%clk 0:01:52.5]} 1-0

[Event "*** Titled Tuesday Blitz"]
[Site "Chess.com"]
[Date "2020.02.04"]
[Round "1"]
[White "wolfje95"]
[Black "Vuk2000"]
[Result "1-0"]
[WhiteElo "2384"]
[BlackElo "2677"]
[TimeControl "180+2"]
[EndTime "13:06:40 PST"]
[Termination "wolfje95 won by resignation"]

1. e4 {[%clk 0:03:01.9]} 1... e6 {[%clk 0:03:00.5]} 2. d4 {[%clk 0:03:02.6]}
2... d5 {[%clk 0:03:01.4]} 3. Nc3 {[%clk 0:03:04.2]} 3... Bb4 {[%clk 0:03:02.1]}
4. Ne2 {[%clk 0:03:04.2]} 4... dxe4 {[%clk 0:03:00.6]} 5. a3 {[%clk 0:03:04.7]}
5... Bxc3+ {[%clk 0:02:55]} 6. Nxc3 {[%clk 0:03:05.5]} 6... Nc6 {[%clk
0:02:55.6]} 7. d5 {[%clk 0:03:06.5]} 7... exd5 {[%clk 0:02:54.7]} 8. Qxd5 {[%clk
0:03:08.4]} 8... Be6 {[%clk 0:02:49.5]} 9. Qxe4 {[%clk 0:03:09.1]} 9... Nf6
{[%clk 0:02:50.6]} 10. Qh4 {[%clk 0:03:09.7]} 10... h6 {[%clk 0:02:33.6]} 11.
Bb5 {[%clk 0:03:08.4]} 11... O-O {[%clk 0:02:23.3]} 12. Bxc6 {[%clk 0:03:04.9]}
12... bxc6 {[%clk 0:02:25.2]} 13. O-O {[%clk 0:03:05]} 13... Re8 {[%clk
0:02:15.2]} 14. Rd1 {[%clk 0:03:05.6]} 14... Qe7 {[%clk 0:02:13.1]} 15. Be3
{[%clk 0:03:04.2]} 15... Bf5 {[%clk 0:02:11.4]} 16. Bd4 {[%clk 0:02:59]} 16...
Bxc2 {[%clk 0:02:03.2]} 17. Bxf6 {[%clk 0:02:54.9]} 17... gxf6 {[%clk
0:01:57.5]} 18. Rdc1 {[%clk 0:02:49.1]} 18... Kg7 {[%clk 0:01:52.8]} 19. Qg3+
{[%clk 0:02:42.5]} 19... Bg6 {[%clk 0:01:53.1]} 20. h4 {[%clk 0:02:35]} 20... h5
{[%clk 0:01:54.2]} 21. Nd1 {[%clk 0:02:33.7]} 21... Rad8 {[%clk 0:01:48.2]} 22.
Ne3 {[%clk 0:02:32.6]} 22... c5 {[%clk 0:01:45.6]} 23. Nf5+ {[%clk 0:02:28.8]}
23... Kh7 {[%clk 0:01:44.7]} 24. Nxe7 {[%clk 0:02:29.8]} 24... Rxe7 {[%clk
0:01:45.9]} 25. Rxc5 {[%clk 0:02:31.1]} 25... Rd4 {[%clk 0:01:41.9]} 26. Rxc7
{[%clk 0:02:30.1]} 26... Ree4 {[%clk 0:01:42.8]} 27. Rc8 {[%clk 0:02:21.2]}
27... Rxh4 {[%clk 0:01:30]} 28. Qb8 {[%clk 0:02:21.2]} 28... Kh6 {[%clk
0:01:31]} 29. Rac1 {[%clk 0:02:08.1]} 29... Rhe4 {[%clk 0:01:19.7]} 30. Rh8+
{[%clk 0:01:59.5]} 30... Kg5 {[%clk 0:01:20.7]} 31. Qg3+ {[%clk 0:01:52.9]}
31... Rg4 {[%clk 0:01:21]} 32. Qe3+ {[%clk 0:01:53.5]} 32... Kh4 {[%clk
0:01:21.7]} 33. g3+ {[%clk 0:01:34.8]} 33... Kh3 {[%clk 0:01:22.8]} 34. Qf3
{[%clk 0:01:36]} 34... Rg5 {[%clk 0:01:23.7]} 35. Qg2+ {[%clk 0:01:23.4]} 35...
Kg4 {[%clk 0:01:24.6]} 36. Kh2 {[%clk 0:01:24.9]} 36... Rf5 {[%clk 0:01:17]} 37.
Rc3 {[%clk 0:01:21.3]} 37... Rfd5 {[%clk 0:01:02]} 38. Qh3+ {[%clk 0:01:14.3]}
38... Kg5 {[%clk 0:01:03.4]} 39. f4+ {[%clk 0:01:15.1]} 1-0

[Event "*** Titled Tuesday Blitz"]
[Site "Chess.com"]
[Date "2020.02.04"]
[Round "1"]
[White "GMHess"]
[Black "Korona_91"]
[Result "0-1"]
[WhiteElo "2742"]
[BlackElo "2424"]
[TimeControl "180+2"]
[EndTime "13:06:52 PST"]
[Termination "Korona_91 won by checkmate"]

1. b3 {[%clk 0:03:01.9]} 1... g6 {[%clk 0:02:58.9]} 2. Bb2 {[%clk 0:03:03.8]}
2... Nf6 {[%clk 0:03:00.8]} 3. g3 {[%clk 0:03:01.9]} 3... Bg7 {[%clk 0:03:01.5]}
4. Bg2 {[%clk 0:03:03.5]} 4... O-O {[%clk 0:03:02.7]} 5. e3 {[%clk 0:03:03.1]}
5... d5 {[%clk 0:03:03.7]} 6. Ne2 {[%clk 0:03:03.2]} 6... c5 {[%clk 0:03:03.4]}
7. d3 {[%clk 0:03:04.8]} 7... Nc6 {[%clk 0:03:04.7]} 8. Nd2 {[%clk 0:03:05.1]}
8... e5 {[%clk 0:03:06]} 9. h3 {[%clk 0:03:05.6]} 9... d4 {[%clk 0:03:07.1]} 10.
Bxc6 {[%clk 0:03:01.1]} 10... bxc6 {[%clk 0:03:07.8]} 11. e4 {[%clk 0:03:01]}
11... Be6 {[%clk 0:03:02.5]} 12. g4 {[%clk 0:02:47.8]} 12... h5 {[%clk
0:02:56.6]} 13. f3 {[%clk 0:02:43.8]} 13... Nh7 {[%clk 0:02:51.3]} 14. Ng3
{[%clk 0:02:16.6]} 14... Qh4 {[%clk 0:02:50.2]} 15. Nf1 {[%clk 0:02:17.2]} 15...
Bh6 {[%clk 0:02:47.6]} 16. Bc1 {[%clk 0:02:05.1]} 16... Bf4 {[%clk 0:02:47.3]}
17. Kf2 {[%clk 0:02:05.1]} 17... Ng5 {[%clk 0:02:43.7]} 18. Kg2 {[%clk
0:02:00.9]} 18... f5 {[%clk 0:02:42.8]} 19. exf5 {[%clk 0:01:50.1]} 19... gxf5
{[%clk 0:02:44.5]} 20. Bxf4 {[%clk 0:00:35.8]} 20... exf4 {[%clk 0:02:43.7]} 21.
Nxf5 {[%clk 0:00:18.6]} 21... Rxf5 {[%clk 0:02:44.3]} 22. gxf5 {[%clk
0:00:20.5]} 22... Bd5 {[%clk 0:02:45.8]} 23. Nh2 {[%clk 0:00:07.8]} 23... Qxh3+
{[%clk 0:02:37.4]} 24. Kf2 {[%clk 0:00:07.8]} 24... Re8 {[%clk 0:02:28.9]} 25.
Qg1 {[%clk 0:00:08.1]} 25... Qh4+ {[%clk 0:02:30]} 26. Kf1 {[%clk 0:00:08.3]}
26... Kf8 {[%clk 0:02:25.8]} 27. Ng4 {[%clk 0:00:05.5]} 27... Nh3 {[%clk
0:02:25]} 28. Nf6 {[%clk 0:00:03.5]} 28... Re3 {[%clk 0:02:15.1]} 29. Nxd5
{[%clk 0:00:04.6]} 29... Rxf3+ {[%clk 0:02:09.1]} 30. Ke2 {[%clk 0:00:05.8]}
30... Rg3 {[%clk 0:02:08.9]} 31. Qf1 {[%clk 0:00:06.3]} 31... cxd5 {[%clk
0:02:07.5]} 32. Kd2 {[%clk 0:00:07.7]} 32... f3 {[%clk 0:02:05.5]} 33. Re1
{[%clk 0:00:08.2]} 33... Qf4+ {[%clk 0:02:05.1]} 34. Kd1 {[%clk 0:00:09.4]}
34... Rg2 {[%clk 0:02:04.7]} 35. Re8+ {[%clk 0:00:02.9]} 35... Kxe8 {[%clk
0:02:05.1]} 36. Qe1+ {[%clk 0:00:04.8]} 36... Re2 {[%clk 0:02:06]} 37. Qa5
{[%clk 0:00:05]} 37... Nf2# {[%clk 0:02:05.7]} 0-1

[Event "*** Titled Tuesday Blitz"]
[Site "Chess.com"]
[Date "2020.02.04"]
[Round "1"]
[White "LivajaM"]
[Black "Lagmantr"]
[Result "0-1"]
[WhiteElo "2404"]
[BlackElo "2753"]
[TimeControl "180+2"]
[EndTime "13:06:53 PST"]
[Termination "Lagmantr won by resignation"]

1. d4 {[%clk 0:03:01]} 1... d5 {[%clk 0:03:00.3]} 2. c4 {[%clk 0:03:01.1]} 2...
e6 {[%clk 0:03:01.5]} 3. Nc3 {[%clk 0:02:55.8]} 3... c6 {[%clk 0:02:59.4]} 4.
Qd3 {[%clk 0:02:51.6]} 4... f5 {[%clk 0:02:57.9]} 5. Nf3 {[%clk 0:02:49.6]} 5...
Nf6 {[%clk 0:02:58.7]} 6. g3 {[%clk 0:02:48.5]} 6... Bd6 {[%clk 0:02:59.5]} 7.
Bg2 {[%clk 0:02:49.5]} 7... O-O {[%clk 0:03:00.1]} 8. O-O {[%clk 0:02:50.3]}
8... Nbd7 {[%clk 0:03:00.2]} 9. Rd1 {[%clk 0:02:48.2]} 9... Ne4 {[%clk 0:03:00]}
10. b3 {[%clk 0:02:33.5]} 10... Ndf6 {[%clk 0:02:33.3]} 11. Bb2 {[%clk
0:02:32.9]} 11... Ng4 {[%clk 0:02:28.1]} 12. Rf1 {[%clk 0:02:26.7]} 12... Bd7
{[%clk 0:02:27.3]} 13. Nd1 {[%clk 0:02:23.8]} 13... Be8 {[%clk 0:02:23.8]} 14.
Ne5 {[%clk 0:02:18.6]} 14... Nxe5 {[%clk 0:02:15.4]} 15. dxe5 {[%clk 0:02:18.5]}
15... Bc5 {[%clk 0:02:16.6]} 16. e3 {[%clk 0:02:08.4]} 16... Bg6 {[%clk
0:02:01.5]} 17. Nc3 {[%clk 0:02:03]} 17... Qe7 {[%clk 0:01:30.8]} 18. Rad1
{[%clk 0:01:54.3]} 18... Rad8 {[%clk 0:01:31.5]} 19. Rfe1 {[%clk 0:01:43.5]}
19... f4 {[%clk 0:01:27.3]} 20. Nxe4 {[%clk 0:01:31.9]} 20... dxe4 {[%clk
0:01:27.3]} 21. Qc2 {[%clk 0:01:24.6]} 21... fxe3 {[%clk 0:01:28.2]} 22. fxe3
{[%clk 0:01:21]} 22... Qg5 {[%clk 0:01:23.8]} 23. Bd4 {[%clk 0:01:17.2]} 23...
Bxd4 {[%clk 0:01:03]} 24. exd4 {[%clk 0:01:12.7]} 24... e3 {[%clk 0:01:01.6]}
25. Be4 {[%clk 0:01:13.1]} 25... Rf2 {[%clk 0:00:50.1]} 26. Qd3 {[%clk
0:01:12.9]} 26... Bxe4 {[%clk 0:00:50.1]} 27. Qxe4 {[%clk 0:01:13.3]} 27... Rdf8
{[%clk 0:00:51.1]} 28. Rxe3 {[%clk 0:01:09.7]} 28... Qh5 {[%clk 0:00:51.1]} 29.
Qh4 {[%clk 0:00:57.4]} 29... Qxd1+ {[%clk 0:00:51.7]} 0-1

[Event "*** Titled Tuesday Blitz"]
[Site "Chess.com"]
[Date "2020.02.04"]
[Round "1"]
[White "MikeSailer"]
[Black "Supernotar"]
[Result "0-1"]
[WhiteElo "2121"]
[BlackElo "2549"]
[TimeControl "180+2"]
[EndTime "13:07:12 PST"]
[Termination "Supernotar won by resignation"]

1. Nf3 {[%clk 0:03:01.2]} 1... c5 {[%clk 0:02:51.8]} 2. b3 {[%clk 0:03:01.3]}
2... Nc6 {[%clk 0:02:52.2]} 3. Bb2 {[%clk 0:03:01]} 3... Nf6 {[%clk 0:02:51.7]}
4. e3 {[%clk 0:03:00.2]} 4... e6 {[%clk 0:02:49.6]} 5. c4 {[%clk 0:03:00.5]}
5... Be7 {[%clk 0:02:49.9]} 6. Be2 {[%clk 0:03:00.9]} 6... O-O {[%clk
0:02:49.8]} 7. O-O {[%clk 0:03:01.8]} 7... d5 {[%clk 0:02:49]} 8. d4 {[%clk
0:03:02.8]} 8... cxd4 {[%clk 0:02:49.3]} 9. Nxd4 {[%clk 0:02:59.1]} 9... Nxd4
{[%clk 0:02:49.9]} 10. Qxd4 {[%clk 0:02:52.9]} 10... b6 {[%clk 0:02:50.3]} 11.
Nd2 {[%clk 0:02:50.9]} 11... Bb7 {[%clk 0:02:50.2]} 12. Nf3 {[%clk 0:02:51.3]}
12... Rc8 {[%clk 0:02:48.6]} 13. Rfd1 {[%clk 0:02:48.2]} 13... Qc7 {[%clk
0:02:43.9]} 14. Rac1 {[%clk 0:02:40.8]} 14... Qb8 {[%clk 0:02:44.8]} 15. Ne5
{[%clk 0:02:28.4]} 15... Rfd8 {[%clk 0:02:41.5]} 16. Qh4 {[%clk 0:02:04.8]}
16... dxc4 {[%clk 0:02:37.8]} 17. Rxd8+ {[%clk 0:02:00.2]} 17... Rxd8 {[%clk
0:02:36.7]} 18. Bxc4 {[%clk 0:01:53.4]} 18... Qd6 {[%clk 0:02:29]} 19. Bd4
{[%clk 0:01:33.3]} 19... Rc8 {[%clk 0:02:09.4]} 20. Rd1 {[%clk 0:01:18]} 20...
Rd8 {[%clk 0:02:04.6]} 21. h3 {[%clk 0:01:11.7]} 21... Nd7 {[%clk 0:01:53.4]}
22. Nxf7 {[%clk 0:01:01.6]} 22... Kxf7 {[%clk 0:01:45.2]} 23. Qxh7 {[%clk
0:00:58.8]} 23... Nf6 {[%clk 0:01:36.3]} 24. Qh4 {[%clk 0:00:46.3]} 24... b5
{[%clk 0:01:27.6]} 25. Be2 {[%clk 0:00:45]} 25... e5 {[%clk 0:01:18.4]} 26. Bxa7
{[%clk 0:00:36.8]} 26... Qc6 {[%clk 0:01:15.3]} 27. Bf3 {[%clk 0:00:32.5]} 27...
Rxd1+ {[%clk 0:01:15.1]} 28. Kh2 {[%clk 0:00:31.4]} 28... Qd7 {[%clk 0:01:05.7]}
29. Bxd1 {[%clk 0:00:23.9]} 29... Qxd1 {[%clk 0:01:05.3]} 30. Qg5 {[%clk
0:00:18.8]} 30... Qd5 {[%clk 0:01:01.7]} 31. f3 {[%clk 0:00:18.9]} 31... e4
{[%clk 0:00:58.6]} 0-1